[Event "FIDE Grand Swiss 2023"]
[Site "Villa Marina, Douglas, Isle of Man"]
[Date "2023.10.25"]
[Round "1.26"]
[White "Xiong, Jeffery"]
[Black "Karthikeyan, Murali"]
[Result "1/2-1/2"]
[WhiteElo "2693"]
[BlackElo "2611"]
[EventDate "2023.10.25"]
[ECO "D43"]
[PlyCount "65"]
[BlackFideId "5074452"]
[TimeControl "40/100 + 20/50 + 15 + 30s/move"]
[WhiteFideId "2047640"]

1.d4 {[%clk 01:40:57] [%emt 00:00:03]} 1...Nf6 {[%clk 01:40:49] [%emt 00:00:12]} 
2.c4 {[%clk 01:40:58] [%emt 00:00:29]} 2...e6 {[%clk 01:40:59] [%emt 00:00:20]} 
3.Nf3 {[%clk 01:34:15] [%emt 00:07:13]} 3...d5 {[%clk 01:41:04] [%emt 00:00:25]} 
4.Nc3 {[%clk 01:29:37] [%emt 00:05:08]} 4...c6 {[%clk 01:41:02] [%emt 00:00:32]} 
5.Bg5 {[%clk 01:26:36] [%emt 00:03:31]} 5...Be7 {[%clk 01:40:30] [%emt
00:01:01]} 6.e3 {[%clk 01:26:43] [%emt 00:00:24]} 6...h6 {[%clk 01:38:05] [%emt
00:02:54]} 7.Bh4 {[%clk 01:26:59] [%emt 00:00:14]} 7...Nbd7 {[%clk 01:38:14]
[%emt 00:00:22]} 8.Qc2 {[%clk 01:24:22] [%emt 00:03:07]} 8...b6 {[%clk 01:35:55]
[%emt 00:02:48]} 9.cxd5 {[%clk 01:24:06] [%emt 00:00:46]} 9...cxd5 {[%clk
01:30:40] [%emt 00:05:45]} 10.Bd3 {[%clk 01:19:05] [%emt 00:05:30]} 10...Bb7 
{[%clk 01:29:00] [%emt 00:02:11]} 11.O-O {[%clk 01:15:07] [%emt 00:04:28]} 
11...O-O {[%clk 01:27:22] [%emt 00:02:09]} 12.Rac1 {[%clk 01:03:41] [%emt
00:11:55]} 12...Rc8 {[%clk 01:20:47] [%emt 00:07:05]} 13.Qb1 {[%clk 00:58:43]
[%emt 00:05:28]} 13...a6 {[%clk 01:08:02] [%emt 00:13:15]} 14.b4 {[%clk
00:56:17] [%emt 00:02:56]} 14...b5 {[%clk 00:46:01] [%emt 00:22:32]} 15.a4 
{[%clk 00:53:34] [%emt 00:03:13]} 15...Ne4 {[%clk 00:40:21] [%emt 00:06:09]} 
16.Nxe4 {[%clk 00:40:07] [%emt 00:13:57]} 16...Rxc1 {[%clk 00:37:53] [%emt
00:02:58]} 17.Rxc1 {[%clk 00:40:23] [%emt 00:00:14]} 17...dxe4 {[%clk 00:38:19]
[%emt 00:00:05]} 18.Bxe7 {[%clk 00:32:52] [%emt 00:08:00]} 18...Qxe7 {[%clk
00:38:43] [%emt 00:00:06]} 19.Bxe4 {[%clk 00:33:19] [%emt 00:00:03]} 19...Bxe4 
{[%clk 00:39:02] [%emt 00:00:11]} 20.Qxe4 {[%clk 00:33:47] [%emt 00:00:02]} 
20...bxa4 {[%clk 00:29:51] [%emt 00:09:42]} 21.Qc6 {[%clk 00:33:19] [%emt
00:00:56]} 21...Qxb4 {[%clk 00:26:48] [%emt 00:03:34]} 22.Qxd7 {[%clk 00:27:52]
[%emt 00:05:58]} 22...a3 {[%clk 00:26:20] [%emt 00:00:58]} 23.Qc6 {[%clk
00:18:59] [%emt 00:09:23]} 23...Qb2 {[%clk 00:24:49] [%emt 00:02:00]} 24.Rf1 
{[%clk 00:11:41] [%emt 00:07:48]} 24...a5 {[%clk 00:21:22] [%emt 00:03:57]} 
25.g4 {[%clk 00:07:27] [%emt 00:04:44]} 25...a2 {[%clk 00:12:59] [%emt
00:08:53]} 26.Qa4 {[%clk 00:07:56] [%emt 00:00:02]} 26...Rc8 {[%clk 00:09:53]
[%emt 00:03:36]} 27.Kg2 {[%clk 00:07:49] [%emt 00:00:36]} 27...Kh7 {[%clk
00:08:14] [%emt 00:02:09]} 28.Qd7 {[%clk 00:03:43] [%emt 00:04:36]} 28...Rc1 
{[%clk 00:06:40] [%emt 00:02:04]} 29.Qxf7 {[%clk 00:03:19] [%emt 00:00:54]} 
29...Rxf1 {[%clk 00:07:04] [%emt 00:00:07]} 30.Ng5+ {[%clk 00:03:43] [%emt
00:00:05]} 30...hxg5 {[%clk 00:07:28] [%emt 00:00:06]} 31.Qh5+ {[%clk 00:04:09]
[%emt 00:00:04]} 31...Kg8 {[%clk 00:07:54] [%emt 00:00:04]} 32.Qe8+ {[%clk
00:04:34] [%emt 00:00:04]} 32...Kh7 {[%clk 00:08:20] [%emt 00:00:05]} 33.Qh5+ 
{[%clk 00:04:59] [%emt 00:00:04]} 1/2-1/2

[Event "FIDE Grand Swiss 2023"]
[Site "Villa Marina, Douglas, Isle of Man"]
[Date "2023.10.25"]
[Round "1.27"]
[White "Gupta, Abhijeet"]
[Black "Fedoseev, Vladimir"]
[Result "0-1"]
[WhiteElo "2609"]
[BlackElo "2691"]
[EventDate "2023.10.25"]
[ECO "E12"]
[PlyCount "94"]
[BlackFideId "24130737"]
[TimeControl "40/100 + 20/50 + 15 + 30s/move"]
[WhiteFideId "5010608"]

1.d4 {[%clk 01:40:52] [%emt 00:00:08]} 1...Nf6 {[%clk 01:40:48] [%emt 00:00:12]} 
2.c4 {[%clk 01:41:12] [%emt 00:00:12]} 2...e6 {[%clk 01:41:11] [%emt 00:00:06]} 
3.Nf3 {[%clk 01:41:25] [%emt 00:00:16]} 3...b6 {[%clk 01:41:21] [%emt 00:00:20]} 
4.a3 {[%clk 01:41:15] [%emt 00:00:41]} 4...Bb7 {[%clk 01:38:28] [%emt 00:03:23]} 
5.Nc3 {[%clk 01:41:23] [%emt 00:00:22]} 5...d5 {[%clk 01:38:51] [%emt 00:00:07]} 
6.cxd5 {[%clk 01:41:44] [%emt 00:00:10]} 6...exd5 {[%clk 01:39:17] [%emt
00:00:01]} 7.Bg5 {[%clk 01:41:10] [%emt 00:01:06]} 7...Nbd7 {[%clk 01:37:45]
[%emt 00:02:02]} 8.Ne5 {[%clk 01:31:06] [%emt 00:10:34]} 8...Nxe5 {[%clk
01:15:54] [%emt 00:22:22]} 9.dxe5 {[%clk 01:30:05] [%emt 00:01:31]} 9...h6 
{[%clk 01:16:18] [%emt 00:00:05]} 10.Bh4 {[%clk 01:26:49] [%emt 00:03:46]} 
10...g5 {[%clk 01:16:11] [%emt 00:00:37]} 11.Bg3 {[%clk 01:18:33] [%emt
00:08:46]} 11...Nh5 {[%clk 01:08:21] [%emt 00:08:20]} 12.e4 {[%clk 00:59:12]
[%emt 00:19:51]} 12...Nxg3 {[%clk 01:07:26] [%emt 00:01:26]} 13.hxg3 {[%clk
00:59:38] [%emt 00:00:04]} 13...Bg7 {[%clk 00:56:28] [%emt 00:11:28]} 14.f4 
{[%clk 00:59:42] [%emt 00:00:25]} 14...d4 {[%clk 00:50:50] [%emt 00:06:07]} 
15.Qa4+ {[%clk 00:59:33] [%emt 00:00:39]} 15...Kf8 {[%clk 00:50:44] [%emt
00:00:36]} 16.Rd1 {[%clk 00:56:05] [%emt 00:03:58]} 16...c5 {[%clk 00:47:14]
[%emt 00:04:01]} 17.Ba6 {[%clk 00:52:26] [%emt 00:04:09]} 17...Bxa6 {[%clk
00:45:21] [%emt 00:02:23]} 18.Qxa6 {[%clk 00:52:52] [%emt 00:00:04]} 18...h5 
{[%clk 00:43:56] [%emt 00:01:55]} 19.Nb5 {[%clk 00:46:29] [%emt 00:06:53]} 
19...Qc8 {[%clk 00:37:36] [%emt 00:06:50]} 20.Qxc8+ {[%clk 00:38:51] [%emt
00:08:08]} 20...Rxc8 {[%clk 00:36:55] [%emt 00:01:11]} 21.Ke2 {[%clk 00:38:59]
[%emt 00:00:22]} 21...h4 {[%clk 00:32:46] [%emt 00:04:40]} 22.Nd6 {[%clk
00:39:04] [%emt 00:00:24]} 22...Rc6 {[%clk 00:25:22] [%emt 00:07:54]} 23.Nf5 
{[%clk 00:33:34] [%emt 00:06:00]} 23...hxg3 {[%clk 00:18:36] [%emt 00:07:16]} 
24.Rxh8+ {[%clk 00:33:06] [%emt 00:00:59]} 24...Bxh8 {[%clk 00:18:59] [%emt
00:00:07]} 25.Rh1 {[%clk 00:33:06] [%emt 00:00:29]} 25...Bg7 {[%clk 00:19:25]
[%emt 00:00:04]} 26.Nxg7 {[%clk 00:29:34] [%emt 00:04:03]} 26...Kxg7 {[%clk
00:19:47] [%emt 00:00:07]} 27.f5 {[%clk 00:30:01] [%emt 00:00:03]} 27...c4 
{[%clk 00:15:59] [%emt 00:04:18]} 28.Rd1 {[%clk 00:23:49] [%emt 00:06:42]} 
28...d3+ {[%clk 00:12:58] [%emt 00:03:32]} 29.Ke3 {[%clk 00:24:15] [%emt
00:00:03]} 29...b5 {[%clk 00:13:02] [%emt 00:00:26]} 30.Kd4 {[%clk 00:15:01]
[%emt 00:09:45]} 30...a5 {[%clk 00:11:40] [%emt 00:01:52]} 31.Kc3 {[%clk
00:14:42] [%emt 00:00:49]} 31...Rc5 {[%clk 00:10:34] [%emt 00:01:36]} 32.Kd4 
{[%clk 00:15:06] [%emt 00:00:06]} 32...Rc8 {[%clk 00:10:49] [%emt 00:00:15]} 
33.Kc3 {[%clk 00:15:29] [%emt 00:00:07]} 33...Kf8 {[%clk 00:06:57] [%emt
00:04:22]} 34.Rh1 {[%clk 00:07:14] [%emt 00:08:44]} 34...Ke7 {[%clk 00:06:57]
[%emt 00:00:29]} 35.Rd1 {[%clk 00:07:13] [%emt 00:00:32]} 35...Rc5 {[%clk
00:04:25] [%emt 00:03:02]} 36.Kd4 {[%clk 00:07:29] [%emt 00:00:14]} 36...Rc7 
{[%clk 00:04:49] [%emt 00:00:06]} 37.Kc3 {[%clk 00:07:48] [%emt 00:00:11]} 
37...Rc8 {[%clk 00:05:07] [%emt 00:00:12]} 38.Rh1 {[%clk 00:07:37] [%emt
00:00:42]} 38...Rd8 {[%clk 00:04:54] [%emt 00:00:43]} 39.Rd1 {[%clk 00:07:34]
[%emt 00:00:33]} 39...a4 {[%clk 00:04:07] [%emt 00:01:17]} 40.Kd2 {[%clk
00:01:12] [%emt 00:06:52]} 40...Rh8 {[%clk 00:03:34] [%emt 00:01:02]} 41.Ke3 
{[%clk 00:00:58] [%emt 00:00:43]} 41...Rh4 {[%clk 00:03:51] [%emt 00:00:14]} 
42.Kd4 {[%clk 00:41:04] [%emt 00:10:24]} 42...Rf4 {[%clk 00:50:56] [%emt
00:03:25]} 43.Kd5 {[%clk 00:40:28] [%emt 00:01:06]} 43...Rf2 {[%clk 00:50:55]
[%emt 00:00:30]} 44.Rh1 {[%clk 00:38:57] [%emt 00:02:02]} 44...d2 {[%clk
00:50:45] [%emt 00:00:40]} 45.e6 {[%clk 00:38:04] [%emt 00:01:22]} 45...Rxg2 
{[%clk 00:48:36] [%emt 00:02:39]} 46.exf7 {[%clk 00:38:06] [%emt 00:00:28]} 
46...Rh2 {[%clk 00:47:37] [%emt 00:01:29]} 47.Rd1 {[%clk 00:38:28] [%emt
00:00:08]} 47...Rf2 {[%clk 00:46:37] [%emt 00:01:30]} 0-1

[Event "FIDE Grand Swiss 2023"]
[Site "Villa Marina, Douglas, Isle of Man"]
[Date "2023.10.25"]
[Round "1.28"]
[White "Grandelius, Nils"]
[Black "Mareco, Sandro"]
[Result "1/2-1/2"]
[WhiteElo "2689"]
[BlackElo "2606"]
[EventDate "2023.10.25"]
[ECO "C92"]
[PlyCount "153"]
[BlackFideId "112275"]
[TimeControl "40/100 + 20/50 + 15 + 30s/move"]
[WhiteFideId "1710400"]

1.e4 {[%clk 01:40:23] [%emt 00:00:33]} 1...e5 {[%clk 01:40:56] [%emt 00:00:06]} 
2.Nf3 {[%clk 01:40:39] [%emt 00:00:14]} 2...Nc6 {[%clk 01:41:21] [%emt
00:00:05]} 3.Bb5 {[%clk 01:40:14] [%emt 00:00:55]} 3...a6 {[%clk 01:41:46] [%emt
00:00:06]} 4.Ba4 {[%clk 01:40:39] [%emt 00:00:04]} 4...Nf6 {[%clk 01:42:14]
[%emt 00:00:03]} 5.O-O {[%clk 01:40:12] [%emt 00:00:56]} 5...Be7 {[%clk
01:41:47] [%emt 00:00:58]} 6.Re1 {[%clk 01:40:22] [%emt 00:00:19]} 6...b5 
{[%clk 01:42:12] [%emt 00:00:05]} 7.Bb3 {[%clk 01:40:46] [%emt 00:00:06]} 
7...d6 {[%clk 01:42:38] [%emt 00:00:05]} 8.c3 {[%clk 01:39:54] [%emt 00:01:22]} 
8...O-O {[%clk 01:43:01] [%emt 00:00:08]} 9.h3 {[%clk 01:39:11] [%emt 00:01:13]} 
9...Bb7 {[%clk 01:42:45] [%emt 00:00:46]} 10.d4 {[%clk 01:36:02] [%emt
00:03:39]} 10...Re8 {[%clk 01:42:35] [%emt 00:00:39]} 11.Ng5 {[%clk 01:36:04]
[%emt 00:00:27]} 11...Rf8 {[%clk 01:43:01] [%emt 00:00:06]} 12.Nf3 {[%clk
01:36:30] [%emt 00:00:04]} 12...Re8 {[%clk 01:43:27] [%emt 00:00:04]} 13.a3 
{[%clk 01:36:21] [%emt 00:00:40]} 13...Bf8 {[%clk 01:43:14] [%emt 00:00:42]} 
14.d5 {[%clk 01:35:44] [%emt 00:01:06]} 14...Ne7 {[%clk 01:36:56] [%emt
00:06:49]} 15.c4 {[%clk 01:32:54] [%emt 00:03:20]} 15...h6 {[%clk 01:35:16]
[%emt 00:02:10]} 16.Nc3 {[%clk 01:29:23] [%emt 00:04:00]} 16...c6 {[%clk
01:34:27] [%emt 00:01:19]} 17.dxc6 {[%clk 01:16:39] [%emt 00:13:14]} 17...Bxc6 
{[%clk 01:34:48] [%emt 00:00:09]} 18.Qd3 {[%clk 01:16:30] [%emt 00:00:38]} 
18...Ng6 {[%clk 01:21:31] [%emt 00:13:48]} 19.cxb5 {[%clk 01:09:01] [%emt
00:07:59]} 19...axb5 {[%clk 01:21:54] [%emt 00:00:06]} 20.Be3 {[%clk 01:09:07]
[%emt 00:00:24]} 20...Qd7 {[%clk 01:19:06] [%emt 00:03:18]} 21.Nd5 {[%clk
00:55:13] [%emt 00:14:24]} 21...Nxd5 {[%clk 01:15:56] [%emt 00:03:40]} 22.Bxd5 
{[%clk 00:55:38] [%emt 00:00:06]} 22...Ra4 {[%clk 00:53:50] [%emt 00:22:36]} 
23.Bd2 {[%clk 00:47:00] [%emt 00:09:07]} 23...Bxd5 {[%clk 00:53:09] [%emt
00:01:11]} 24.Qxd5 {[%clk 00:47:06] [%emt 00:00:23]} 24...Rc4 {[%clk 00:50:55]
[%emt 00:02:44]} 25.Rac1 {[%clk 00:36:47] [%emt 00:10:49]} 25...Rec8 {[%clk
00:50:41] [%emt 00:00:44]} 26.Rxc4 {[%clk 00:36:44] [%emt 00:00:33]} 26...bxc4 
{[%clk 00:49:17] [%emt 00:01:55]} 27.Be3 {[%clk 00:31:52] [%emt 00:05:21]} 
27...Ne7 {[%clk 00:44:17] [%emt 00:05:30]} 28.Qd2 {[%clk 00:31:33] [%emt
00:00:49]} 28...Qe6 {[%clk 00:42:50] [%emt 00:01:58]} 29.Rd1 {[%clk 00:27:29]
[%emt 00:04:34]} 29...Rc6 {[%clk 00:36:30] [%emt 00:06:50]} 30.a4 {[%clk
00:24:05] [%emt 00:03:54]} 30...f5 {[%clk 00:33:05] [%emt 00:03:56]} 31.exf5 
{[%clk 00:23:15] [%emt 00:01:19]} 31...Nxf5 {[%clk 00:33:11] [%emt 00:00:24]} 
32.a5 {[%clk 00:16:51] [%emt 00:06:54]} 32...Nxe3 {[%clk 00:29:47] [%emt
00:03:54]} 33.fxe3 {[%clk 00:17:09] [%emt 00:00:12]} 33...Be7 {[%clk 00:29:59]
[%emt 00:00:17]} 34.Ra1 {[%clk 00:09:07] [%emt 00:08:33]} 34...Ra6 {[%clk
00:27:18] [%emt 00:03:11]} 35.e4 {[%clk 00:08:52] [%emt 00:00:45]} 35...Bd8 
{[%clk 00:24:47] [%emt 00:03:01]} 36.Qb4 {[%clk 00:08:17] [%emt 00:01:04]} 
36...Kh7 {[%clk 00:23:20] [%emt 00:01:58]} 37.Qb5 {[%clk 00:03:08] [%emt
00:05:38]} 37...Qc8 {[%clk 00:21:54] [%emt 00:01:57]} 38.Kh2 {[%clk 00:03:27]
[%emt 00:00:10]} 38...c3 {[%clk 00:15:55] [%emt 00:06:30]} 39.bxc3 {[%clk
00:01:32] [%emt 00:02:25]} 39...Qxc3 {[%clk 00:16:05] [%emt 00:00:19]} 40.Qxa6 
{[%clk 00:00:38] [%emt 00:01:24]} 40...Qxa1 {[%clk 00:16:31] [%emt 00:00:05]} 
41.Qxd6 {[%clk 00:49:04] [%emt 00:02:04]} 41...Qxa5 {[%clk 01:06:55] [%emt
00:00:06]} 42.h4 {[%clk 00:45:25] [%emt 00:04:09]} 42...Qc7 {[%clk 00:36:50]
[%emt 00:30:35]} 43.Qe6 {[%clk 00:40:28] [%emt 00:05:27]} 43...Qe7 {[%clk
00:36:25] [%emt 00:00:54]} 44.Qf5+ {[%clk 00:24:45] [%emt 00:16:13]} 44...g6 
{[%clk 00:31:35] [%emt 00:05:21]} 45.Qc8 {[%clk 00:24:57] [%emt 00:00:15]} 
45...Qc7 {[%clk 00:31:10] [%emt 00:00:57]} 46.Qe6 {[%clk 00:22:17] [%emt
00:03:10]} 46...Qe7 {[%clk 00:31:34] [%emt 00:00:07]} 47.Qd5 {[%clk 00:22:40]
[%emt 00:00:07]} 47...Bc7 {[%clk 00:31:48] [%emt 00:00:16]} 48.Kh3 {[%clk
00:22:50] [%emt 00:00:20]} 48...Bd6 {[%clk 00:26:40] [%emt 00:05:38]} 49.h5 
{[%clk 00:14:21] [%emt 00:08:58]} 49...gxh5 {[%clk 00:24:43] [%emt 00:02:28]} 
50.Nh4 {[%clk 00:13:54] [%emt 00:00:56]} 50...Qf6 {[%clk 00:24:34] [%emt
00:00:39]} 51.Qb7+ {[%clk 00:08:30] [%emt 00:05:54]} 51...Kg8 {[%clk 00:15:15]
[%emt 00:09:49]} 52.Qc8+ {[%clk 00:08:51] [%emt 00:00:09]} 52...Bf8 {[%clk
00:15:33] [%emt 00:00:11]} 53.Qe8 {[%clk 00:08:34] [%emt 00:00:46]} 53...Qg5 
{[%clk 00:06:54] [%emt 00:09:11]} 54.Qe6+ {[%clk 00:05:47] [%emt 00:03:16]} 
54...Kh7 {[%clk 00:07:20] [%emt 00:00:04]} 55.Nf3 {[%clk 00:03:59] [%emt
00:02:18]} 55...Qf4 {[%clk 00:07:46] [%emt 00:00:05]} 56.Qxe5 {[%clk 00:02:39]
[%emt 00:01:49]} 56...Qxe5 {[%clk 00:08:11] [%emt 00:00:05]} 57.Nxe5 {[%clk
00:03:05] [%emt 00:00:04]} 57...Bd6 {[%clk 00:08:35] [%emt 00:00:06]} 58.Nc6 
{[%clk 00:02:44] [%emt 00:00:51]} 58...Kg6 {[%clk 00:08:45] [%emt 00:00:21]} 
59.Kh4 {[%clk 00:02:33] [%emt 00:00:40]} 59...Bf4 {[%clk 00:06:49] [%emt
00:02:27]} 60.Nb4 {[%clk 00:00:51] [%emt 00:02:12]} 60...Bg5+ {[%clk 00:06:32]
[%emt 00:00:47]} 61.Kg3 {[%clk 00:01:16] [%emt 00:00:05]} 61...Bd2 {[%clk
00:05:04] [%emt 00:01:58]} 62.Nd5 {[%clk 00:00:57] [%emt 00:00:48]} 62...Kg5 
{[%clk 00:05:00] [%emt 00:00:35]} 63.Kf3 {[%clk 00:01:15] [%emt 00:00:11]} 
63...Bc1 {[%clk 00:04:47] [%emt 00:00:44]} 64.Ne3 {[%clk 00:01:08] [%emt
00:00:36]} 64...Bb2 {[%clk 00:04:10] [%emt 00:01:07]} 65.Nc4 {[%clk 00:01:18]
[%emt 00:00:20]} 65...Bc3 {[%clk 00:04:24] [%emt 00:00:16]} 66.Nd6 {[%clk
00:01:35] [%emt 00:00:13]} 66...Bb2 {[%clk 00:04:11] [%emt 00:00:44]} 67.Nb7 
{[%clk 00:01:09] [%emt 00:00:55]} 67...Bd4 {[%clk 00:03:53] [%emt 00:00:48]} 
68.Nd8 {[%clk 00:01:31] [%emt 00:00:08]} 68...Bb2 {[%clk 00:04:10] [%emt
00:00:13]} 69.Ne6+ {[%clk 00:01:49] [%emt 00:00:12]} 69...Kf6 {[%clk 00:04:16]
[%emt 00:00:24]} 70.Nf4 {[%clk 00:02:15] [%emt 00:00:04]} 70...Kg5 {[%clk
00:04:16] [%emt 00:00:30]} 71.Nh3+ {[%clk 00:02:37] [%emt 00:00:08]} 71...Kf6 
{[%clk 00:04:31] [%emt 00:00:15]} 72.Ke3 {[%clk 00:02:29] [%emt 00:00:39]} 
72...Ke5 {[%clk 00:03:09] [%emt 00:01:53]} 73.Kd3 {[%clk 00:02:05] [%emt
00:00:53]} 73...Bc1 {[%clk 00:03:30] [%emt 00:00:09]} 74.Ng1 {[%clk 00:02:11]
[%emt 00:00:23]} 74...Ba3 {[%clk 00:02:34] [%emt 00:01:26]} 75.Ne2 {[%clk
00:02:32] [%emt 00:00:09]} 75...Kf6 {[%clk 00:01:31] [%emt 00:01:33]} 76.Nd4 
{[%clk 00:01:24] [%emt 00:01:39]} 76...Kg5 {[%clk 00:00:56] [%emt 00:01:05]} 
77.Ke2 {[%clk 00:14:17] [%emt 00:02:36]} 1/2-1/2